bitfinex-derivatives/quotes_ETHF0:USTF0_20260131
["timestamp","ask_amount","ask_price","bid_price","bid_amount"]
[1769901364266,0.15372636,2421.8,2420.8,0.16081631]
[1769901364673,0.15372636,2421.8,2420.4,4.1304]
[1769901364674,0.20671,2421.9,2421.0,0.16081631]
[1769901365074,0.20671,2421.9,2421.1,0.16081631]
[1769901365474,0.20671,2421.9,2421.1,4.29121631]
[1769901366074,0.15372636,2421.8,2421.0,0.00386258]
[1769901366979,0.20671,2421.9,2421.1,4.29121631]
[1769901367779,0.20667,2422.3,2421.2,0.15640124]
[1769901368074,0.20667,2422.3,2421.1,4.1304]
[1769901368075,0.35775317,2422.2,2421.3,0.15640124]
[1769901368270,0.15107317,2422.0,2421.0,0.16026382]
[1769901368474,0.20669,2422.1,2421.0,0.16026382]
[1769901368675,0.20669,2422.1,2421.2,0.15640124]
[1769901368872,0.15107317,2422.6,2421.4,0.15640124]
[1769901369882,0.15107317,2422.6,2421.5,0.15640124]
[1769901370080,3.87107317,2423.1,2421.9,0.15640124]
[1769901370283,3.72,2423.1,2421.9,0.15640124]
[1769901370477,3.72,2423.1,2422.3,0.15640124]
[1769901371084,0.15107317,2423.0,2421.6,0.15640124]
[1769901371285,0.35768317,2423.0,2421.8,0.15640124]
[1769901371583,3.72,2423.1,2422.1,0.15640124]
[1769901371977,3.72,2423.1,2422.3,4.1304]
[1769901372178,3.72,2423.1,2422.3,4.28680124]
[1769901372479,3.72,2423.1,2422.4,4.1304]
[1769901372879,0.15107317,2423.0,2421.9,0.15640124]
[1769901373079,0.35768317,2423.0,2422.1,4.1304]
[1769901373485,0.35768317,2423.0,2422.2,4.1304]
[1769901373677,0.35768317,2423.0,2422.3,4.1304]
[1769901373876,0.15107317,2422.7,2421.6,0.15640124]
[1769901374485,0.15107317,2422.7,2421.9,4.1304]
[1769901374979,0.15107317,2422.7,2422.0,4.1304]
[1769901375179,0.15107317,2422.6,2421.6,0.15640124]
[1769901375375,0.15107317,2422.5,2421.3,2.424]
[1769901375584,0.15107317,2422.5,2421.4,4.1304]
[1769901375781,0.15107317,2422.5,2421.5,4.1304]
[1769901376182,0.2067,2421.9,2421.0,0.16026382]
[1769901376685,0.35773317,2422.5,2421.4,4.28680124]
[1769901376881,0.15107317,2422.4,2421.0,0.16026382]
[1769901377186,0.15107317,2422.0,2421.0,0.16026382]
[1769901377588,0.15107317,2422.0,2421.1,4.1304]
[1769901377986,0.15107317,2422.0,2421.2,4.1304]
[1769901378186,0.35776317,2422.0,2421.2,4.1304]
[1769901378487,0.35776317,2422.0,2421.3,4.1304]
[1769901378687,0.35776317,2422.0,2421.0,0.16026382]
[1769901378688,0.35776317,2422.0,2421.2,4.1304]
[1769901379091,0.35776317,2422.0,2421.3,4.1304]
[1769901379388,0.35776317,2422.0,2421.2,4.1304]
[1769901379884,0.35776317,2422.0,2421.3,4.1304]
[1769901380088,0.35776317,2422.0,2421.2,4.1304]
[1769901380285,0.15107317,2421.9,2421.2,4.1304]
[1769901380484,0.15107317,2421.9,2421.3,4.1304]
[1769901380690,0.15107317,2421.6,2421.0,4.13426258]
[1769901380889,0.15512214,2421.6,2421.0,0.00386258]
[1769901381079,0.15512214,2421.6,2421.2,4.1304]
[1769901381282,0.15512214,2421.6,2421.0,0.00386258]
[1769901381478,0.15512214,2421.6,2420.5,3.67788806]
[1769901381479,0.15107317,2421.5,2420.5,4.03293314]
[1769901381890,0.15107317,2421.3,2420.5,4.1304]
[1769901382087,0.35784317,2421.2,2420.1,7.86722244]
[1769901382387,0.15107317,2420.9,2419.8,7.86722244]
[1769901382585,0.00404897,2421.6,2419.9,0.15949444]
[1769901382887,0.20677,2421.1,2420.3,0.15640124]
[1769901383088,0.20677,2421.1,2419.9,8.99199219]
[1769901383089,0.20677,2421.1,2420.1,0.15640124]
[1769901383288,0.20677,2421.1,2420.5,4.1304]
[1769901383785,0.20677,2421.1,2420.8,4.1304]
[1769901383985,0.20677,2421.1,2420.4,0.15640124]
[1769901383986,0.20677,2421.1,2420.5,4.1304]
[1769901384386,0.20677,2421.1,2420.6,4.1304]
[1769901384582,0.20677,2421.1,2420.5,4.1304]
[1769901384889,0.35781317,2421.5,2419.9,7.79753895]
[1769901385084,0.35782317,2421.4,2420.4,0.15640124]
[1769901385285,0.15107317,2421.3,2420.4,0.15640124]
[1769901385485,0.20675,2421.4,2420.9,0.15640124]
[1769901385686,0.00404897,2421.6,2420.9,0.15640124]
[1769901385880,0.00404897,2421.6,2421.3,0.15640124]
[1769901386289,0.00404897,2421.6,2421.5,4.1304]
[1769901387392,0.00404897,2421.6,2421.5,2.74801055]
[1769901387594,0.00404897,2421.6,2421.0,0.15640124]
[1769901387789,0.00404897,2421.6,2420.4,0.16159078]
[1769901389396,0.00404897,2421.6,2420.6,0.16128503]
[1769901389589,0.20669,2422.1,2420.7,0.15926055]
[1769901389790,0.20669,2422.1,2421.0,0.15926055]
[1769901390494,0.21110885,2422.1,2421.0,0.15926055]
[1769901391097,0.00441885,2422.1,2421.0,0.15926055]
[1769901391396,0.20671,2421.9,2421.0,0.15926055]
[1769901392897,0.20673,2421.6,2420.7,0.15934145]
[1769901398407,0.21515938,2422.1,2420.7,0.15934145]
[1769901398606,0.21110885,2422.1,2420.7,0.15934145]
[1769901398806,0.21110885,2422.1,2420.9,0.15966581]
[1769901399398,0.21110885,2422.1,2421.1,0.15977959]
[1769901399606,0.00441885,2422.1,2421.1,0.15977959]
[1769901399904,0.00441885,2422.1,2421.2,0.15977959]
[1769901400104,0.00441885,2422.1,2421.3,0.15977959]
[1769901400704,3.72,2422.3,2421.3,4.27633728]
[1769901401001,0.2066,2423.1,2421.6,0.15757017]
[1769901401205,0.2066,2423.1,2421.7,0.15757017]
[1769901401400,0.2066,2423.1,2421.9,0.15879053]
[1769901401602,0.2066,2423.1,2422.0,0.15879053]
[1769901401806,0.21153854,2423.1,2422.0,0.16333676]
[1769901402306,0.21153854,2423.1,2422.1,0.15902739]
[1769901402607,0.21153854,2423.1,2422.2,0.15902739]
[1769901404306,0.20655,2423.7,2422.4,0.15902739]
[1769901404704,0.20656,2423.6,2422.4,0.15902739]
[1769901405306,0.21090657,2423.6,2422.4,0.15902739]
[1769901405907,0.58135397,2423.6,2422.4,0.15902739]
[1769901406902,0.58135397,2423.6,2422.5,0.15902739]
[1769901407107,0.00434657,2423.6,2422.5,0.15902739]
[1769901407403,0.00434657,2423.6,2422.6,2.44125882]
[1769901407609,0.00434657,2423.6,2422.7,0.15902739]
[1769901408411,0.00607538,2423.5,2422.7,0.15902739]
[1769901409104,0.21264538,2423.5,2422.7,0.15902739]
[1769901409301,0.20658,2423.4,2422.4,0.15902739]
[1769901410712,0.37186948,2423.6,2422.4,0.15902739]
[1769901412604,0.20659,2423.2,2422.4,0.15902739]
[1769901412805,0.00413962,2423.5,2422.0,0.00454623]
[1769901413009,0.00413962,2423.5,2422.1,0.15953474]
[1769901413716,0.20661,2423.0,2422.1,0.15953474]
[1769901413915,0.20663,2422.8,2422.0,0.00454623]
[1769901414113,0.00342545,2423.0,2422.0,0.00454623]
[1769901414313,0.20664,2422.7,2422.0,0.16443806]
[1769901419416,0.20659,2423.2,2422.0,0.16443806]
[1769901421615,0.37186948,2423.6,2422.0,0.16443806]
[1769901421616,0.37186948,2423.6,2422.4,0.16022451]
[1769901422023,0.57842948,2423.6,2422.4,0.16022451]
[1769901422718,0.20662,2422.9,2422.1,0.16022451]
[1769901422918,0.20938008,2422.9,2422.0,0.00454623]
[1769901423119,0.00276008,2422.7,2422.0,0.00454623]
[1769901423325,0.00276008,2422.7,2421.8,0.16022451]
[1769901424215,0.20666,2422.5,2421.8,0.16445114]
[1769901424419,2.62961,2423.0,2421.8,0.16445114]
[1769901424626,0.20657,2423.5,2422.1,0.16044719]
[1769901425118,0.20657,2423.5,2422.5,0.16044719]
[1769901425326,0.37186948,2423.6,2422.7,0.16044719]
[1769901425628,0.37186948,2423.6,2422.8,0.16012378]
[1769901425826,0.37186948,2423.6,2422.9,0.16012378]
[1769901426125,0.37186948,2423.6,2423.0,0.16012378]
[1769901426327,0.37186948,2423.6,2423.1,0.16012378]
[1769901426513,0.00434657,2423.6,2423.1,0.16012378]
[1769901426718,0.07182714,2424.4,2423.2,0.16012378]
[1769901426719,0.20649,2424.4,2423.2,0.16012378]
[1769901426921,0.58287626,2424.4,2423.2,0.16012378]
[1769901427314,0.58287626,2424.4,2423.4,0.15939782]
[1769901427513,0.58287626,2424.4,2423.5,0.15939782]
[1769901427715,0.58579497,2424.4,2423.5,0.16457559]
[1769901428122,0.21084589,2424.1,2423.5,0.00517777]
[1769901428320,0.20652,2424.1,2423.5,0.00517777]
[1769901428525,0.37930497,2424.4,2423.5,0.16457559]
[1769901429319,0.37930497,2424.4,2423.6,0.15939782]
[1769901429521,0.21162376,2424.3,2423.5,0.00517777]
[1769901429817,0.00512376,2424.3,2423.5,0.00517777]
[1769901430327,0.00512376,2424.0,2423.0,0.15899888]
[1769901431228,0.20654,2423.9,2423.1,0.15899888]
[1769901431415,0.37930497,2424.4,2423.1,4.44263852]
[1769901431621,0.37930497,2424.4,2423.3,0.15884774]
[1769901432421,0.58579497,2424.4,2423.3,0.15884774]
[1769901433422,0.21093472,2424.1,2423.1,2.59635574]
[1769901433619,0.00441472,2423.9,2423.0,0.0034741]
[1769901434024,0.37930497,2424.4,2423.0,0.0034741]
[1769901434025,0.2065,2424.3,2423.0,0.1628275]
[1769901434328,0.2065,2424.3,2423.2,0.1593534]
[1769901436623,0.2065,2424.3,2423.3,0.15914262]
[1769901437028,0.2065,2424.3,2423.4,0.15914262]
[1769901437223,0.2065,2424.3,2423.5,0.15914262]
[1769901438728,0.20652,2424.1,2423.5,0.15914262]
[1769901438928,0.20652,2424.1,2423.2,0.158862]
[1769901440429,0.20652,2424.0,2423.2,0.158862]
[1769901441634,0.20653,2423.9,2423.2,0.158862]
[1769901442033,0.20653,2423.9,2423.0,0.0034741]
[1769901442234,0.20656,2423.6,2423.0,0.0034741]
[1769901442433,0.20657,2423.5,2423.0,0.0034741]
[1769901442834,0.20657,2423.5,2423.0,0.16233087]
[1769901443633,0.20653,2424.0,2423.0,0.16233087]
[1769901444129,0.20653,2424.0,2423.1,0.1588756]
[1769901444834,0.20653,2423.9,2423.1,0.1588756]
[1769901445037,0.21190031,2423.9,2423.0,0.0034741]
[1769901445430,0.21190031,2423.9,2423.0,0.1623497]
[1769901446137,0.20653,2423.9,2423.0,0.1623497]
[1769901446539,0.20653,2423.9,2423.1,0.15853018]
[1769901447232,0.20653,2423.9,2423.2,0.15853018]
[1769901449334,0.58579497,2424.4,2423.4,0.15823668]
[1769901449537,0.58579497,2424.4,2423.5,0.15823668]
[1769901449734,0.37930497,2424.4,2423.6,0.15823668]
[1769901449933,0.37930497,2424.4,2423.7,0.15823668]
[1769901451234,0.20647,2424.7,2423.8,0.15823668]
[1769901451438,0.57323586,2424.7,2423.9,0.15819814]
[1769901452230,0.00512305,2424.7,2424.1,0.15819814]
[1769901452528,0.20643,2425.1,2424.2,0.15563661]
[1769901452731,0.2064,2425.5,2424.3,0.15563661]
[1769901453335,0.21141182,2425.5,2424.4,0.15548597]
[1769901454337,0.57220914,2425.5,2424.7,0.15548597]
[1769901454639,0.57220914,2425.5,2424.7,0.1594397]
[1769901454841,0.57220914,2425.5,2424.8,0.15548597]
[1769901455240,0.36580914,2425.5,2424.8,0.15548597]
[1769901455438,0.00501182,2425.5,2424.9,0.15548597]
[1769901455638,2.422,2426.0,2424.9,0.15548597]
[1769901455839,2.62835,2426.0,2424.9,0.15548597]
[1769901456137,0.20635,2426.0,2425.0,6.94074642]
[1769901456442,0.20631,2426.6,2425.3,0.15656783]
[1769901456738,0.57219663,2426.6,2425.7,0.15656783]
[1769901456944,0.21629586,2426.5,2425.5,0.15656783]
[1769901457642,0.20631,2426.5,2425.5,0.15656783]
[1769901457942,0.20632,2426.4,2425.5,0.15656783]
[1769901460038,0.36588663,2426.6,2425.5,0.15656783]
[1769901462041,0.36588663,2426.6,2425.6,0.15521773]
[1769901462439,0.57218663,2426.6,2425.6,0.15521773]
[1769901463739,0.00479966,2426.6,2425.6,0.15521773]
[1769901464451,3.92226,2427.2,2425.7,0.15291166]
[1769901464746,0.20626,2427.2,2425.7,0.15291166]
[1769901464948,0.20626,2427.2,2425.8,0.15291166]
[1769901465243,0.21120675,2427.2,2426.1,0.15291166]
[1769901465842,0.21120675,2427.2,2426.3,0.15217397]
[1769901468249,0.20621,2427.7,2426.5,0.1519838]
[1769901469353,0.21132074,2427.7,2426.5,0.15701396]
[1769901469745,0.56584834,2427.7,2426.5,0.15701396]
[1769901469947,0.01838164,2427.6,2426.7,0.15235299]
[1769901470145,0.20625,2427.2,2426.5,0.00503016]
[1769901470352,0.56584834,2427.7,2426.5,0.15738315]
[1769901470850,0.20622,2427.6,2426.5,0.15738315]
[1769901471047,0.20623,2427.5,2426.5,0.15738315]
[1769901471448,0.20624,2427.4,2426.5,0.15738315]
[1769901472048,0.20626,2427.1,2426.5,0.15738315]
[1769901476149,0.0145845,2426.7,2425.9,2.43700234]
[1769901476350,0.20629,2426.8,2425.8,0.15425156]
[1769901476550,0.20625,2427.3,2425.9,0.15425156]
[1769901476751,0.20625,2427.3,2426.0,0.15425156]
[1769901477153,0.20625,2427.3,2426.0,0.15845744]
[1769901477352,0.20625,2427.3,2426.2,0.15425156]
[1769901477649,0.35963834,2427.7,2426.4,0.15380352]
[1769901478052,0.35963834,2427.7,2426.5,0.15380352]
[1769901478249,0.00511074,2427.7,2426.5,2.59080586]
[1769901478453,0.00511074,2427.7,2426.7,2.59080586]
[1769901478652,0.00511074,2427.7,2426.8,0.15380352]
[1769901478850,0.00511074,2427.7,2426.8,2.59080586]
[1769901479054,0.00511074,2427.7,2426.9,0.15380352]
[1769901480052,0.01590499,2427.6,2426.7,0.15359131]
[1769901480254,0.01590499,2427.6,2426.5,2.43700234]
[1769901480458,0.01590499,2427.6,2426.5,6.77187315]
[1769901481060,0.22215499,2427.3,2426.4,0.15359131]
[1769901481358,0.01590499,2427.2,2426.4,2.59059365]
[1769901481551,0.01590499,2427.2,2426.4,0.15359131]
[1769901481757,0.01590499,2427.2,2426.2,2.43700234]
[1769901481953,0.22186015,2427.0,2426.1,2.59075107]
[1769901482154,0.2061,2429.0,2427.3,0.14803956]
[1769901482357,0.00511074,2429.2,2428.5,0.14803956]
[1769901482555,0.16008577,2429.4,2428.6,0.14803956]
[1769901482862,0.16008577,2429.4,2428.2,2.57839467]
[1769901483060,0.16008577,2429.2,2428.2,2.43421534]
[1769901483252,0.16008577,2429.2,2428.2,0.00386023]
[1769901483459,0.16008577,2429.0,2428.2,4.33453482]
[1769901483659,0.16008577,2429.0,2428.2,0.00386023]
[1769901484055,0.00511074,2428.9,2428.2,0.15189979]
[1769901484363,0.0029201,2429.4,2428.4,2.57839467]
[1769901484364,0.00511074,2429.2,2428.4,2.57839467]
[1769901484563,0.00511074,2429.2,2428.6,0.14803956]
[1769901484765,0.0029201,2429.4,2428.7,4.47040967]
[1769901484960,0.16008577,2430.3,2428.9,0.14803956]
[1769901485165,0.16008577,2430.3,2428.8,2.43035511]
[1769901485166,0.16008577,2429.9,2428.8,2.43035511]
[1769901485364,0.16008577,2429.9,2428.8,6.75272522]
[1769901485561,0.16008577,2429.9,2428.8,6.90076478]
[1769901485961,0.16364485,2429.9,2428.8,6.90076478]
[1769901486166,0.16364485,2429.9,2428.9,0.14803956]
[1769901487065,0.16364485,2429.9,2428.7,2.43035511]
[1769901487265,0.16364485,2429.9,2428.7,0.1495344]
[1769901487466,0.15519038,2429.8,2428.7,0.1495344]
[1769901487661,0.15519038,2429.8,2428.4,6.68488951]
[1769901488063,0.15519038,2429.5,2428.2,2.43421534]
[1769901488262,0.15519038,2429.5,2428.2,0.15339463]
[1769901488964,0.15519038,2429.2,2428.2,0.00386023]
[1769901489566,0.36127038,2429.2,2428.2,0.00386023]
[1769901489766,0.15519038,2429.1,2428.2,0.00386023]
[1769901490267,0.35661836,2429.9,2428.2,0.00386023]
[1769901490268,0.15519038,2428.9,2428.2,0.00386023]
[1769901490567,0.15519038,2428.5,2427.6,0.1495344]
[1769901490767,0.15519038,2428.5,2427.3,2.57988951]
[1769901490967,0.15519038,2428.4,2427.3,2.57988951]
[1769901491363,0.15519038,2428.4,2427.2,2.43035511]
[1769901491557,0.15519038,2428.3,2427.2,0.00473269]
[1769901491961,0.15519038,2428.3,2427.2,0.15426709]
[1769901492169,0.15519038,2428.3,2427.4,0.1495344]
[1769901492563,0.36136038,2428.3,2427.3,6.68599695]
[1769901492764,0.15519038,2428.2,2427.3,6.68599695]
[1769901493062,0.15842945,2428.2,2427.2,6.69072964]
[1769901493267,0.15842945,2428.2,2427.3,6.68599695]
[1769901494369,0.15842945,2428.2,2427.3,4.2573667]
[1769901494968,0.15519038,2428.1,2427.2,6.69072964]
[1769901495160,0.15519038,2428.0,2427.2,0.00473269]
[1769901495868,0.15519038,2428.0,2427.2,6.95689649]
[1769901496064,0.36137038,2428.1,2427.2,6.95689649]
[1769901496263,0.15519038,2428.0,2427.2,2.58289734]
[1769901497362,0.00323907,2428.2,2427.1,4.48439718]
[1769901497363,0.20621,2427.7,2427.1,4.48439718]
[1769901497569,0.20621,2427.7,2426.8,4.86071023]
[1769901497570,0.15519038,2427.5,2426.6,3.79506707]
[1769901498159,0.15519038,2427.5,2426.6,0.1495344]
[1769901498569,0.15519038,2427.9,2426.6,0.15389622]
[1769901498766,0.20618,2428.0,2426.9,0.1495344]
[1769901499169,0.20618,2428.0,2427.1,0.1495344]
[1769901499664,0.15842945,2428.2,2427.2,0.1495344]
[1769901500568,0.15519038,2428.1,2427.2,0.1495344]
[1769901500768,0.15519038,2427.6,2426.7,3.64553267]
[1769901500972,0.36141038,2427.6,2426.6,3.79942889]
[1769901501372,0.15519038,2428.0,2426.8,0.1495344]
[1769901501580,0.15519038,2427.7,2426.8,0.1495344]
[1769901501870,0.15519038,2427.4,2426.6,0.00436182]
[1769901502172,0.15519038,2427.1,2426.1,3.64553267]
[1769901502572,0.15519038,2427.1,2426.1,3.79506707]
[1769901503072,0.15519038,2427.1,2426.1,3.79805043]
[1769901503575,0.15519038,2427.0,2426.1,0.15251776]
[1769901503773,0.15519038,2426.7,2426.1,0.00298336]
[1769901504274,0.15519038,2427.1,2426.1,0.15251776]
[1769901504672,0.36147038,2426.9,2426.1,0.00298336]
[1769901504872,0.15519038,2426.8,2426.1,0.00298336]
[1769901506269,0.36142038,2427.4,2426.1,0.15251776]
[1769901506569,0.15519038,2426.9,2426.1,0.00298336]
[1769901507469,0.15519038,2426.5,2425.5,3.79506707]
[1769901507870,0.15519038,2426.8,2425.6,0.1495344]
[1769901508469,0.15920373,2426.8,2425.6,0.15392936]
[1769901508767,0.00401335,2426.8,2425.6,3.79946203]
[1769901509073,0.00401335,2426.8,2425.7,0.1495344]
[1769901509476,0.36149038,2426.7,2425.7,0.1495344]
[1769901509675,0.15519038,2426.6,2425.7,0.1495344]
[1769901512275,0.36149038,2426.6,2425.7,0.1495344]
[1769901512576,0.15519038,2426.5,2425.6,0.15392936]
[1769901512773,0.15519038,2426.2,2425.6,0.00439496]
[1769901513680,0.15519038,2426.7,2425.6,0.00439496]
[1769901513974,0.15519038,2426.6,2425.6,0.00439496]
[1769901514177,0.15519038,2426.3,2425.6,0.00439496]
[1769901514885,0.20632,2426.4,2425.6,0.15392936]
[1769901515581,0.36151038,2426.4,2425.6,0.00439496]
[1769901515973,0.15519038,2426.3,2425.6,0.00439496]
[1769901516177,0.15519038,2426.3,2425.0,0.1495344]
[1769901516480,0.20634,2426.2,2425.0,0.1495344]
[1769901516778,0.15519038,2426.1,2425.0,0.1495344]
[1769901516970,0.14866592,2425.9,2424.8,3.64553267]
[1769901517170,0.14866592,2425.7,2424.8,0.00530614]
[1769901518278,0.14866592,2425.4,2424.8,0.00530614]
[1769901520080,0.2064,2425.5,2424.8,0.15790979]
[1769901520677,3.712,2426.2,2424.8,0.15790979]
[1769901520979,0.14866592,2426.0,2424.8,0.15790979]
[1769901521180,0.14866592,2426.0,2424.9,0.15260365]
[1769901522683,0.14866592,2426.0,2425.0,0.16065825]
[1769901522982,0.20631,2426.5,2425.1,0.16065825]
[1769901523177,0.20631,2426.5,2425.2,0.16065825]
[1769901523385,0.20631,2426.5,2425.5,0.16065825]
[1769901524280,0.20631,2426.5,2425.6,0.16065825]
[1769901524483,0.20622,2427.6,2426.4,0.16065825]
[1769901524782,0.14693414,2427.5,2426.6,0.16065825]
[1769901524982,0.35317414,2427.3,2426.3,0.16065825]
[1769901525182,0.35317414,2427.3,2426.3,4.43501049]
[1769901525483,0.35818944,2427.3,2426.3,4.43839657]
[1769901525684,0.35818944,2427.3,2426.4,4.43501049]
[1769901525985,0.0050153,2427.3,2426.6,0.16065825]
[1769901526185,0.0050153,2427.3,2426.7,0.16065825]
[1769901526781,0.20619,2427.9,2426.7,0.16065825]
[1769901526984,0.20619,2427.9,2426.9,0.16065825]
[1769901527185,0.20619,2427.9,2427.0,0.16065825]
[1769901527680,0.00401335,2427.8,2427.0,0.16065825]
[1769901527984,0.00804125,2427.8,2427.0,0.16065825]
[1769901528188,0.00401335,2427.7,2427.0,0.16065825]
[1769901528486,0.14693414,2428.3,2427.2,0.16065825]
[1769901528787,0.14693414,2428.3,2427.3,0.16065825]
[1769901528983,0.20613,2428.6,2427.3,0.16065825]
[1769901529286,0.14693414,2428.9,2427.5,0.16065825]
[1769901529586,0.15161473,2428.9,2427.7,0.16065825]
[1769901529888,0.00401335,2428.8,2427.9,0.16065825]
[1769901530081,0.00401335,2428.7,2427.9,0.16065825]
[1769901530582,0.15161473,2428.9,2427.9,0.16065825]
[1769901532390,0.00468059,2428.9,2427.9,0.16065825]
[1769901532881,0.20608,2429.2,2428.0,0.16065825]
[1769901533389,0.20608,2429.2,2428.1,0.16065825]
[1769901533986,0.20943418,2429.2,2428.1,0.16562154]
[1769901534186,0.00335418,2429.2,2428.1,0.16562154]
[1769901534391,0.35296414,2429.8,2428.2,0.16065825]
[1769901534684,0.35296414,2429.8,2428.3,0.16065825]
[1769901534880,0.35296414,2429.8,2428.5,0.16065825]
[1769901535389,0.00401335,2429.7,2428.5,0.16065825]
[1769901535789,0.14693414,2429.4,2428.5,0.16065825]
[1769901535985,0.00401335,2429.3,2428.5,0.16065825]
[1769901536184,0.14693414,2429.3,2428.3,2.418]
[1769901536386,0.15094749,2429.1,2428.3,2.418]
[1769901536586,0.35304414,2428.9,2428.1,0.00496329]
[1769901536786,0.20611,2428.9,2428.1,0.16562154]
[1769901536988,0.00401335,2428.8,2428.1,0.16562154]
[1769901538289,0.00401335,2428.5,2428.1,0.00496329]
[1769901538690,0.00401335,2428.3,2428.1,0.00496329]
[1769901538888,0.00401335,2428.5,2428.1,0.00496329]
[1769901539286,0.20611,2428.9,2428.1,0.16562154]
[1769901539486,0.00401335,2428.7,2428.1,0.16562154]
[1769901539889,0.00401335,2428.6,2428.1,0.16562154]
[1769901540192,0.00401335,2428.7,2428.1,0.16562154]
[1769901540692,0.00401335,2428.6,2428.1,0.16562154]
[1769901540889,0.00401335,2428.7,2428.1,0.16562154]
[1769901541384,0.00401335,2428.5,2428.1,0.00496329]
[1769901541591,0.14693414,2428.8,2428.1,0.00496329]
[1769901541592,0.15094749,2428.6,2428.1,0.00496329]
[1769901542287,0.00401335,2428.3,2427.6,2.418]
[1769901542491,0.14693414,2428.4,2427.5,0.16065825]
[1769901542790,0.00401335,2428.3,2427.5,0.16065825]
[1769901543185,0.00401335,2428.2,2427.5,0.16539029]
[1769901543482,0.00401335,2428.3,2427.5,0.16539029]
[1769901543886,0.00401335,2428.2,2427.5,0.16539029]
[1769901544093,0.20618,2428.1,2427.5,0.00473204]
[1769901544282,0.21369485,2428.1,2427.5,0.00473204]
[1769901544593,0.00401335,2428.0,2427.5,0.16539029]
[1769901544792,10.18,2428.9,2427.5,0.16539029]
[1769901544793,0.20613,2428.6,2427.5,0.16539029]
[1769901545788,0.21072851,2428.6,2427.5,0.16539029]
[1769901546695,0.00459851,2428.6,2427.5,0.16539029]
[1769901547288,0.00459851,2428.6,2427.6,0.15740445]
[1769901548195,0.20608,2429.2,2427.7,0.15740445]
[1769901548395,0.20608,2429.2,2427.9,0.15740445]
[1769901549191,0.21031067,2429.2,2428.0,0.15740445]
[1769901549599,0.14541217,2429.0,2428.0,0.15740445]
[1769901549796,0.14541217,2428.8,2427.6,0.15740445]
[1769901549991,0.14541217,2428.8,2427.7,0.15740445]
[1769901550395,0.14541217,2428.6,2427.5,8.0827837]
[1769901550597,0.14541217,2428.6,2427.5,0.00473204]
[1769901552192,0.14541217,2428.4,2427.6,4.43251899]
[1769901552700,0.14541217,2428.4,2427.5,4.43725103]
[1769901552897,0.00423067,2429.2,2427.9,0.15740445]
[1769901553094,25.42466755,2431.5,2428.9,0.15740445]
[1769901553095,0.20598,2430.4,2428.9,0.15740445]
[1769901553291,0.5627716,2430.4,2429.1,0.15740445]
[1769901553494,0.20598,2430.4,2429.3,0.15740445]
[1769901553690,0.20598,2430.4,2429.4,0.15740445]
[1769901553894,0.07163803,2430.9,2429.5,0.15740445]
[1769901554097,0.28110898,2430.9,2429.5,0.16169821]
[1769901554297,0.57059806,2430.9,2429.7,0.15740445]
[1769901554505,0.36465806,2430.9,2429.9,0.15740445]
[1769901554693,0.00353095,2430.9,2430.0,4.39839095]
[1769901554897,0.20592,2431.2,2430.1,4.39839095]
[1769901555098,0.14541217,2431.0,2430.0,4.39320346]
[1769901555299,0.14541217,2431.0,2430.0,0.15740445]
[1769901555495,0.14541217,2431.0,2430.1,0.15740445]
[1769901555802,0.14541217,2430.8,2429.7,4.55060791]
[1769901556004,0.14541217,2430.7,2429.5,3.64982643]
[1769901556204,0.14541217,2430.7,2429.6,4.37502198]
[1769901556501,0.14541217,2430.7,2429.7,4.53242643]
[1769901556804,0.14541217,2430.7,2429.7,0.15740445]
[1769901557003,0.14977257,2431.0,2429.9,0.15740445]
[1769901558707,0.14541217,2430.7,2429.6,2.43132915]
[1769901559097,0.14541217,2430.7,2429.6,6.80050942]
[1769901559401,0.14541217,2430.7,2429.7,4.36936038]
[1769901559700,0.0043604,2431.0,2429.9,0.15740445]
[1769901559903,0.0043604,2431.0,2430.1,0.15740445]
[1769901560303,0.14977257,2431.0,2430.1,0.15740445]
[1769901560793,0.14977257,2431.0,2429.9,6.79333246]
[1769901560993,0.14541217,2430.7,2429.8,6.95073691]
[1769901561197,0.14541217,2430.7,2429.8,0.15740445]
[1769901561394,0.14541217,2430.7,2429.8,4.51940776]
[1769901561600,0.20595,2430.8,2429.9,0.15740445]
[1769901562601,0.20595,2430.8,2430.0,0.15740445]
[1769901564600,0.20595,2430.8,2430.0,4.51940776]
[1769901564807,0.20595,2430.8,2430.1,0.15740445]
[1769901565107,0.14541217,2430.6,2429.8,2.43132915]
[1769901565302,0.14541217,2430.6,2429.8,6.88089448]
[1769901565806,0.14541217,2430.6,2429.8,2.43132915]
[1769901566001,0.14541217,2430.6,2429.8,4.47680473]
[1769901566207,0.14541217,2430.6,2429.7,2.43132915]
[1769901567110,0.14541217,2430.6,2429.8,4.47583111]
[1769901567408,0.35136217,2430.7,2429.8,4.63323556]
[1769901567610,0.35136217,2430.7,2429.8,2.5887336]
[1769901567808,0.14541217,2430.6,2429.8,2.5887336]
[1769901569016,0.20595,2430.7,2429.9,4.73353588]
[1769901569217,0.20595,2430.7,2429.9,0.15740445]
[1769901569722,0.14541217,2430.9,2430.0,0.15740445]
[1769901569911,0.0043604,2431.0,2430.0,2.5887336]
[1769901570112,0.0043604,2431.0,2430.1,0.15740445]
[1769901571921,0.0043604,2431.0,2430.1,2.5887336]
[1769901572117,0.0043604,2431.0,2430.2,0.15740445]
[1769901573221,0.0043604,2431.0,2430.2,2.5887336]
[1769901573411,0.14541217,2431.1,2430.3,7.16577731]
[1769901573615,0.14541217,2431.1,2430.3,0.15740445]
[1769901573818,0.14541217,2431.1,2430.3,2.5887336]
[1769901574220,0.14541217,2431.1,2430.4,7.13366524]
[1769901574420,0.00288868,2431.1,2430.4,2.5887336]
[1769901575116,0.14541217,2432.0,2431.0,2.5887336]
[1769901575322,0.14541217,2432.0,2431.1,4.82319197]
[1769901575517,0.14541217,2432.0,2431.1,0.15740445]
[1769901575919,0.14969904,2432.0,2431.1,0.15740445]
[1769901576225,0.00428687,2432.0,2431.4,0.15740445]
[1769901576423,0.14969904,2432.0,2431.4,0.00363625]
[1769901576624,0.14969904,2432.0,2431.0,2.43132915]
[1769901576827,0.14969904,2432.0,2431.0,2.5887336]
[1769901577519,0.14969904,2432.0,2431.0,2.59333856]
[1769901578320,0.20586,2431.8,2431.0,2.59333856]
[1769901578518,0.20586,2431.8,2431.1,0.15386688]
[1769901578727,0.20586,2431.8,2431.1,2.58519603]
[1769901578923,0.20586,2431.8,2431.1,0.15386688]
[1769901579120,0.20586,2431.8,2431.1,2.58519603]
[1769901579319,0.20589,2431.5,2431.0,2.43593411]
[1769901579523,0.15196106,2431.4,2431.0,0.00460496]
[1769901579826,0.00428687,2432.0,2430.6,2.43132915]
[1769901579827,0.35787106,2431.2,2430.6,2.43132915]
[1769901580118,0.15196106,2431.1,2430.7,4.63642378]
[1769901580323,0.15196106,2431.1,2430.6,2.43132915]
[1769901580720,0.15196106,2431.1,2430.6,0.00314562]
[1769901581115,0.15196106,2431.1,2430.6,2.43305941]